lending/lending_fUSD_20250425
["ID","MTS","AMOUNT","RATE_DAILY","PERIOD"]
[358949635,1745583068381,-500.0,0.0003589,2]
[358949636,1745583068401,-373.99875856,0.0003589,2]
[358949637,1745583068419,-546.08,0.0003589,2]
[358949638,1745583068437,-500.0,0.0003589,2]
[358949639,1745583068452,-329.9151587,0.0003589,2]
[358949640,1745583068462,-500.0,0.0003589,2]
[358949641,1745583068473,-728.93,0.0003589,2]
[358949642,1745583068483,-500.0,0.0003589,2]
[358949643,1745583068492,-500.0,0.0003589,2]
[358949644,1745583068502,-653.19,0.0003589,2]
[358949645,1745583068511,-644.02,0.0003589,2]
[358949646,1745583068521,-629.88219425,0.0003589,2]
[358949647,1745583068531,-1007.1,0.0003589,2]
[358949648,1745583068541,-500.0,0.0003589,2]
[358949649,1745583068551,-299.314075,0.0003589,7]
[358949650,1745583068562,-299.314075,0.0003589,7]
[358949651,1745583068571,-299.314075,0.0003589,7]
[358949652,1745583068581,-299.314075,0.0003589,7]
[358949653,1745583068590,-500.0,0.0003589,2]
[358949654,1745583069073,-583.12211743,0.0003589,2]
[358949655,1745583069102,-581.58012516,0.0003589,2]
[358949656,1745583069112,-500.0,0.0003589,2]
[358949657,1745583069122,-299.314075,0.0003589,7]
[358949658,1745583069131,-299.314075,0.0003589,7]
[358949659,1745583069141,-500.0,0.0003589,2]
[358949660,1745583069150,-787.02,0.0003589,2]
[358949661,1745583069160,-299.314075,0.0003589,7]
[358949662,1745583069170,-299.314075,0.0003589,7]
[358949663,1745583069180,-1008.08,0.0003589,2]
[358949664,1745583069189,-694.5,0.0003589,2]
[358949665,1745583069199,-500.0,0.0003589,2]
[358949666,1745583069209,-500.0,0.0003589,2]
[358949667,1745583069218,-500.0,0.0003589,2]
[358949668,1745583069228,-1132.53,0.0003589,2]
[358949669,1745583069237,-500.0,0.0003589,2]
[358949670,1745583069246,-500.0,0.0003589,2]
[358949671,1745583069255,-500.0,0.0003589,2]
[358949672,1745583069265,-500.0,0.0003589,2]
[358949673,1745583069274,-500.0,0.0003589,2]
[358949674,1745583069283,-500.0,0.0003589,2]
[358949675,1745583069293,-500.0,0.0003589,2]
[358949676,1745583069303,-769.43,0.0003589,2]
[358949677,1745583069312,-500.0,0.0003589,2]
[358949678,1745583069321,-1312.71,0.0003589,2]
[358949679,1745583069331,-588.08,0.0003589,2]
[358949680,1745583069340,-500.0,0.0003589,2]
[358949681,1745583069349,-500.0,0.0003589,2]
[358949682,1745583069359,-500.0,0.0003589,2]
[358949683,1745583069368,-500.0,0.0003589,2]
[358949684,1745583069378,-500.0,0.0003589,2]
[358949685,1745583069387,-517.24,0.0003589,2]
[358949686,1745583069399,-1073.84,0.0003589,2]
[358949687,1745583069410,-500.0,0.0003589,2]
[358949688,1745583069422,-500.0,0.0003589,2]
[358949689,1745583069434,-260.01884086,0.0003589,2]
[358949690,1745583069443,-500.0,0.0003589,2]
[358949691,1745583069454,-1188.42,0.0003589,2]
[358949692,1745583069464,-511.12461942,0.0003589,2]
[358949693,1745583069475,-500.0,0.0003589,2]
[358949694,1745583069486,-616.99997512,0.0003589,2]
[358949695,1745583069496,-742.58,0.0003589,2]
[358949696,1745583069505,-500.0,0.0003589,2]
[358949697,1745583069515,-528.27,0.0003589,2]
[358949698,1745583069524,-500.0,0.0003589,2]
[358949699,1745583069535,-500.0,0.0003589,2]
[358949700,1745583069545,-500.0,0.0003589,2]
[358949701,1745583069553,-678.67,0.0003589,2]
[358949702,1745583069563,-984.22,0.0003589,2]
[358949703,1745583069574,-500.0,0.0003589,2]
[358949704,1745583069584,-1357.86,0.0003589,2]
[358949705,1745583069593,-500.0,0.0003589,2]
[358949706,1745583069603,-632.43884672,0.0003589,2]
[358949707,1745583069612,-543.59305698,0.0003589,2]
[358949708,1745583069622,-1018.63,0.0003589,2]
[358949709,1745583069631,-500.0,0.0003589,2]
[358949710,1745583069641,-500.0,0.0003589,2]
[358949711,1745583069651,-500.0,0.0003589,2]
[358949712,1745583069661,-500.0,0.0003589,2]
[358949713,1745583069671,-500.0,0.0003589,2]
[358949714,1745583069680,-599.18,0.0003589,2]
[358949715,1745583069690,-618.78,0.0003589,2]
[358949716,1745583069706,-500.0,0.0003589,2]
[358949717,1745583069716,-499.40560064,0.0003589,2]
[358949718,1745583069726,-500.0,0.0003589,2]
[358949719,1745583069736,-500.0,0.0003589,2]
[358949720,1745583069746,-1036.97,0.0003589,2]
[358949721,1745583069755,-500.0,0.0003589,2]
[358949722,1745583069765,-500.0,0.0003589,2]
[358949723,1745583069775,-695.81,0.0003589,2]
[358949724,1745583069784,-544.75486638,0.0003589,2]
[358949725,1745583069795,-500.0,0.0003589,2]
[358949726,1745583069804,-500.0,0.0003589,2]
[358949727,1745583069814,-2083.95,0.0003589,2]
[358949728,1745583069824,-500.0,0.0003589,2]
[358949729,1745583069833,-500.0,0.0003589,2]
[358949730,1745583069843,-500.0,0.0003589,2]
[358949731,1745583069853,-500.0,0.0003589,2]
[358949732,1745583069863,-255.41304576,0.0003589,2]
[358949733,1745583069872,-500.0,0.0003589,2]
[358949734,1745583069882,-424.57571957,0.0003589,2]
[358949735,1745583069891,-546.36,0.0003589,2]
[358949736,1745583069901,-500.0,0.0003589,2]
[358949737,1745583069911,-1065.05,0.0003589,2]
[358949738,1745583069921,-500.0,0.0003589,2]
[358949739,1745583069930,-500.0,0.0003589,2]
[358949740,1745583069940,-765.14,0.0003589,2]
[358949741,1745583069950,-500.0,0.0003589,2]
[358949742,1745583069959,-500.0,0.0003589,2]
[358949743,1745583069969,-500.0,0.0003589,2]
[358949744,1745583069979,-500.0,0.0003589,2]
[358949745,1745583069989,-500.0,0.0003589,2]
[358949746,1745583069998,-500.0,0.0003589,2]
[358949747,1745583070008,-500.0,0.0003589,2]
[358949748,1745583070018,-500.0,0.0003589,2]
[358949749,1745583070027,-858.84,0.0003589,2]
[358949750,1745583070037,-272.620426,0.0003589,7]
[358949751,1745583070047,-272.620426,0.0003589,7]
[358949752,1745583070057,-763.88,0.0003589,2]
[358949753,1745583070066,-272.620426,0.0003589,7]
[358949754,1745583070076,-500.0,0.0003589,2]
[358949755,1745583070086,-272.620426,0.0003589,7]
[358949756,1745583070095,-500.0,0.0003589,2]
[358949757,1745583070105,-500.0,0.0003589,2]
[358949758,1745583070114,-500.0,0.0003589,2]
[358949759,1745583070123,-572.21,0.0003589,2]
[358949760,1745583070133,-598.47599956,0.0003589,2]
[358949761,1745583070142,-272.620426,0.0003589,7]
[358949762,1745583070151,-272.620426,0.0003589,7]
[358949763,1745583070161,-500.0,0.0003589,2]
[358949764,1745583070171,-272.620426,0.0003589,7]
[358949765,1745583070181,-272.620426,0.0003589,7]
[358949766,1745583070190,-719.69,0.0003589,2]
[358949767,1745583070199,-879.02,0.0003589,2]
[358949768,1745583070209,-500.0,0.0003589,2]
[358949769,1745583070218,-500.0,0.0003589,2]
[358949770,1745583070227,-570.43,0.0003589,2]
[358949771,1745583070236,-500.0,0.0003589,2]
[358949772,1745583070246,-990.31,0.0003589,2]
[358949773,1745583070255,-500.0,0.0003589,2]
[358949774,1745583070265,-542.96,0.0003589,2]
[358949775,1745583070274,-657.75,0.0003589,2]
[358949776,1745583070285,-500.0,0.0003589,2]
[358949777,1745583070296,-500.0,0.0003589,2]
[358949778,1745583070306,-500.0,0.0003589,2]
[358949779,1745583070315,-820.01,0.0003589,2]
[358949780,1745583070326,-500.0,0.0003589,2]
[358949781,1745583070335,-289.028681,0.0003589,7]
[358949782,1745583070345,-961.6,0.0003589,2]
[358949783,1745583070354,-500.0,0.0003589,2]
[358949784,1745583070364,-500.0,0.0003589,2]
[358949785,1745583070373,-500.0,0.0003589,2]
[358949786,1745583070383,-500.0,0.0003589,2]
[358949787,1745583070393,-461.12707489,0.0003589,2]
[358949788,1745583070405,-556.29393033,0.0003589,2]
[358949789,1745583070414,-500.0,0.0003589,2]
[358949790,1745583070423,-500.0,0.0003589,2]
[358949791,1745583070434,-515.47,0.0003589,2]
[358949792,1745583070445,-845.57,0.0003589,2]
[358949793,1745583070455,-500.0,0.0003589,2]
[358949794,1745583070465,-500.0,0.0003589,2]
[358949795,1745583070476,-500.0,0.0003589,2]
[358949796,1745583070487,-754.68,0.0003589,2]
[358949797,1745583070497,-151.0,0.0003589,7]
[358949798,1745583070507,-155.523518,0.0003589,7]
[358949799,1745583070517,-500.0,0.0003589,2]
[358949800,1745583070527,-500.0,0.0003589,2]
[358949801,1745583070538,-512.37,0.0003589,2]
[358949802,1745583070553,-555.88705197,0.0003589,2]
[358949803,1745583070563,-500.0,0.0003589,2]
[358949804,1745583070574,-970.8,0.0003589,2]
[358949805,1745583070584,-500.0,0.0003589,2]
[358949806,1745583070594,-500.0,0.0003589,2]
[358949807,1745583070604,-500.0,0.0003589,2]
[358949808,1745583070613,-513.48059467,0.0003589,2]
[358949809,1745583070623,-500.0,0.0003589,2]
[358949810,1745583070632,-1145.2,0.0003589,2]
[358949811,1745583070642,-500.0,0.0003589,2]
[358949812,1745583070651,-500.0,0.0003589,2]
[358949813,1745583070661,-500.0,0.0003589,2]
[358949814,1745583070670,-500.0,0.0003589,2]
[358949815,1745583070680,-1103.01,0.0003589,2]
[358949816,1745583070690,-536.99,0.0003589,2]
[358949817,1745583070699,-524.27557523,0.0003589,2]
[358949818,1745583070709,-500.0,0.0003589,2]
[358949819,1745583070718,-500.0,0.0003589,2]
[358949820,1745583070728,-531.25756807,0.0003589,2]
[358949821,1745583070737,-500.0,0.0003589,2]
[358949822,1745583070748,-500.0,0.0003589,2]
[358949823,1745583070757,-1179.17,0.0003589,2]
[358949824,1745583070767,-768.62,0.0003589,2]
[358949825,1745583070777,-500.0,0.0003589,2]
[358949826,1745583070787,-534.46515515,0.0003589,2]
[358949827,1745583070801,-500.0,0.0003589,2]
[358949828,1745583070810,-1042.75,0.0003589,2]
[358949829,1745583070820,-781.78,0.0003589,2]
[358949830,1745583070829,-179.531903,0.0003589,7]
[358949831,1745583070840,-179.531903,0.0003589,7]
[358949832,1745583070850,-179.531903,0.0003589,7]
[358949833,1745583070860,-500.0,0.0003589,2]
[358949834,1745583070869,-500.0,0.0003589,2]
[358949835,1745583070879,-500.0,0.0003589,2]
[358949836,1745583070889,-500.0,0.0003589,2]
[358949837,1745583070898,-500.0,0.0003589,2]
[358949838,1745583070909,-792.6,0.0003589,2]
[358949839,1745583070919,-179.531903,0.0003589,7]
[358949840,1745583070930,-179.531903,0.0003589,7]
[358949841,1745583070939,-500.0,0.0003589,2]
[358949842,1745583070950,-179.531903,0.0003589,7]
[358949843,1745583070961,-500.0,0.0003589,2]
[358949844,1745583070972,-871.81,0.0003589,2]
[358949845,1745583070982,-500.0,0.0003589,2]
[358949846,1745583070992,-500.0,0.0003589,2]
[358949847,1745583071001,-500.0,0.0003589,2]
[358949848,1745583071012,-500.0,0.0003589,2]
[358949849,1745583071022,-1002.05,0.0003589,2]
[358949850,1745583071032,-500.0,0.0003589,2]
[358949851,1745583071043,-610.47,0.0003589,2]
[358949852,1745583071054,-500.0,0.0003589,2]
[358949853,1745583071063,-500.0,0.0003589,2]
[358949854,1745583071074,-500.0,0.0003589,2]
[358949855,1745583071084,-500.0,0.0003589,2]
[358949856,1745583071093,-500.0,0.0003589,2]
[358949857,1745583071104,-500.0,0.0003589,2]
[358949858,1745583071114,-500.0,0.0003589,2]
[358949859,1745583071125,-500.0,0.0003589,2]
[358949860,1745583071135,-500.0,0.0003589,2]
[358949861,1745583071145,-942.33,0.0003589,2]
[358949862,1745583071156,-500.0,0.0003589,2]
[358949863,1745583071166,-575.97368434,0.0003589,2]
[358949864,1745583071177,-500.0,0.0003589,2]
[358949865,1745583071187,-767.48,0.0003589,2]
[358949866,1745583071197,-500.0,0.0003589,2]
[358949867,1745583071207,-500.0,0.0003589,2]
[358949868,1745583071217,-500.0,0.0003589,2]
[358949869,1745583071227,-593.9,0.0003589,2]
[358949870,1745583071237,-500.0,0.0003589,2]
[358949871,1745583071248,-500.0,0.0003589,2]
[358949872,1745583071258,-827.14,0.0003589,2]
[358949873,1745583071267,-523.8749985,0.0003589,2]
[358949874,1745583071277,-1147.58,0.0003589,2]
[358949875,1745583071287,-500.0,0.0003589,2]
[358949876,1745583071299,-1065.37,0.0003589,2]
[358949877,1745583071309,-500.0,0.0003589,2]
[358949878,1745583071319,-500.0,0.0003589,2]
[358949879,1745583071329,-503.66766536,0.0003589,2]
[358949880,1745583071339,-534.86789296,0.0003589,2]
[358949881,1745583071349,-500.0,0.0003589,2]
[358949882,1745583071359,-1122.52,0.0003589,2]
[358949883,1745583071369,-500.0,0.0003589,2]
[358949884,1745583071379,-500.0,0.0003589,2]
[358949885,1745583071390,-282.3874892,0.0003589,2]
[358949886,1745583071403,-500.0,0.0003589,2]
[358949887,1745583071413,-576.49304183,0.0003589,2]
[358949888,1745583071424,-500.0,0.0003589,2]
[358949889,1745583071434,-500.0,0.0003589,2]
[358949890,1745583071446,-500.0,0.0003589,2]
[358949891,1745583071457,-500.0,0.0003589,2]
[358949892,1745583071467,-500.0,0.0003589,2]
[358949893,1745583071479,-500.0,0.0003589,2]
[358949894,1745583071490,-901.52,0.0003589,2]
[358949895,1745583071500,-500.0,0.0003589,2]
[358949896,1745583071511,-500.0,0.0003589,2]
[358949897,1745583071521,-1077.87,0.0003589,2]
[358949898,1745583071531,-500.0,0.0003589,2]
[358949899,1745583071541,-500.0,0.0003589,2]
[358949900,1745583071550,-1008.41,0.0003589,2]
[358949901,1745583071560,-895.82,0.0003589,2]
[358949902,1745583071571,-218.13582907,0.0003589,2]
[358949903,1745583071581,-1338.54,0.0003589,2]
[358949904,1745583071591,-1139.46,0.0003589,2]
[358949905,1745583071601,-903.82,0.0003589,2]
[358949906,1745583071611,-560.99,0.0003589,2]
[358949907,1745583071622,-151.0,0.0003589,7]
[358949908,1745583071633,-151.0,0.0003589,7]
[358949909,1745583071642,-151.0,0.0003589,7]
[358949910,1745583071652,-151.0,0.0003589,7]
[358949911,1745583071662,-823.66,0.0003589,2]
[358949912,1745583071672,-781.45,0.0003589,2]
[358949913,1745583071682,-500.0,0.0003589,2]
[358949914,1745583071691,-530.9482349,0.0003589,2]
[358949915,1745583071701,-500.0,0.0003589,2]
[358949916,1745583071711,-500.0,0.0003589,2]
[358949917,1745583071721,-512.50991937,0.0003589,2]
[358949918,1745583071730,-542.03821448,0.0003589,2]
[358949919,1745583071740,-199.41459807,0.0003589,7]
[358949920,1745583071749,-657.34,0.0003589,2]
[358949921,1745583071759,-500.0,0.0003589,2]
[358949922,1745583071769,-500.0,0.0003589,2]
[358949923,1745583071779,-512.28683793,0.0003589,2]
[358949924,1745583071791,-500.0,0.0003589,2]
[358949925,1745583071801,-644.62,0.0003589,2]
[358949926,1745583071811,-505.96,0.0003589,2]
[358949927,1745583071822,-519.22279092,0.0003589,2]
[358949928,1745583071832,-595.07,0.0003589,2]
[358949929,1745583071842,-430.35072616,0.0003589,2]
[358949930,1745583071853,-500.0,0.0003589,2]
[358949931,1745583071862,-536.06459866,0.0003589,2]
[358949932,1745583071873,-500.0,0.0003589,2]
[358949933,1745583071883,-500.0,0.0003589,2]
[358949934,1745583071892,-544.93111206,0.0003589,2]
[358949935,1745583071903,-500.0,0.0003589,2]
[358949936,1745583071913,-501.78,0.0003589,2]
[358949937,1745583071922,-500.0,0.0003589,2]
[358949938,1745583071932,-500.0,0.0003589,2]
[358949939,1745583071942,-329.91538876,0.0003589,2]
[358949940,1745583071951,-500.0,0.0003589,2]
[358949941,1745583071962,-641.42,0.0003589,2]
[358949942,1745583071972,-500.0,0.0003589,2]
[358949943,1745583071982,-500.0,0.0003589,2]
[358949944,1745583071991,-500.0,0.0003589,2]
[358949945,1745583072001,-500.0,0.0003589,2]
[358949946,1745583072011,-534.45303959,0.0003589,2]
[358949947,1745583072021,-500.0,0.0003589,2]
[358949948,1745583072031,-560.73691339,0.0003589,2]
[358949949,1745583072040,-852.47,0.0003589,2]
[358949950,1745583072051,-500.0,0.0003589,2]
[358949951,1745583072060,-500.0,0.0003589,2]
[358949952,1745583072071,-500.0,0.0003589,2]
[358949953,1745583072080,-500.0,0.0003589,2]
[358949954,1745583072092,-578.78133075,0.0003589,2]
[358949955,1745583072102,-875.42,0.0003589,2]
[358949956,1745583072112,-821.73,0.0003589,2]
[358949957,1745583072121,-500.0,0.0003589,2]
[358949958,1745583072131,-500.0,0.0003589,2]
[358949959,1745583072141,-1036.33,0.0003589,2]
[358949960,1745583072151,-513.44,0.0003589,2]
[358949961,1745583072162,-500.0,0.0003589,2]
[358949962,1745583072172,-841.68,0.0003589,2]
[358949963,1745583072182,-500.0,0.0003589,2]
[358949964,1745583072191,-500.0,0.0003589,2]
[358949965,1745583072201,-612.26,0.0003589,2]
[358949966,1745583072211,-500.0,0.0003589,2]
[358949967,1745583072221,-500.0,0.0003589,2]
[358949968,1745583072231,-500.0,0.0003589,2]
[358949969,1745583072240,-500.84,0.0003589,2]
[358949970,1745583072250,-500.0,0.0003589,2]
[358949971,1745583072259,-500.0,0.0003589,2]
[358949972,1745583072269,-520.1,0.0003589,2]
[358949973,1745583072280,-500.0,0.0003589,2]
[358949974,1745583072291,-500.0,0.0003589,2]
[358949975,1745583072302,-500.0,0.0003589,2]
[358949976,1745583072313,-500.0,0.0003589,2]
[358949977,1745583072322,-500.0,0.0003589,2]
[358949978,1745583072332,-603.98678079,0.0003589,2]
[358949979,1745583072342,-975.25,0.0003589,2]
[358949980,1745583072353,-2765.1,0.0003589,2]
[358949981,1745583072363,-500.0,0.0003589,2]
[358949982,1745583072374,-282.97046141,0.0003589,2]
[358949983,1745583072384,-502.18,0.0003589,2]
[358949984,1745583072394,-500.0,0.0003589,2]
[358949985,1745583072407,-500.0,0.0003589,2]
[358949986,1745583072416,-1243.64,0.0003589,2]
[358949987,1745583072426,-500.0,0.0003589,2]
[358949988,1745583072437,-1752.11,0.0003589,2]
[358949989,1745583072448,-500.0,0.0003589,2]
[358949990,1745583072705,-500.0,0.0003589,2]
[358949991,1745583072736,-500.0,0.0003589,2]
[358949992,1745583072746,-500.0,0.0003589,2]
[358949993,1745583072756,-500.0,0.0003589,2]
[358949994,1745583072766,-500.0,0.0003589,2]
[358949995,1745583072776,-500.0,0.0003589,2]
[358949996,1745583072786,-500.0,0.0003589,2]
[358949997,1745583072796,-500.0,0.0003589,2]
[358949998,1745583072806,-500.0,0.0003589,2]
[358949999,1745583072816,-544.35980817,0.0003589,2]
[358950000,1745583072826,-1549.0,0.0003589,2]
[358950001,1745583072836,-500.0,0.0003589,2]
[358950002,1745583072846,-500.0,0.0003589,2]
[358950003,1745583072855,-500.0,0.0003589,2]
[358950004,1745583072865,-500.0,0.0003589,2]
[358950005,1745583072875,-500.0,0.0003589,2]
[358950006,1745583072885,-500.0,0.0003589,2]
[358950007,1745583072895,-500.0,0.0003589,2]
[358950008,1745583072904,-500.0,0.0003589,2]
[358950009,1745583072914,-653.33,0.0003589,2]
[358950010,1745583072924,-500.0,0.0003589,2]
[358950011,1745583072934,-500.0,0.0003589,2]
[358950012,1745583072944,-300.0,0.0003589,30]
[358950013,1745583072954,-607.31312222,0.0003589,2]
[358950014,1745583072964,-500.0,0.0003589,2]
[358950015,1745583072973,-500.0,0.0003589,2]
[358950016,1745583072983,-500.0,0.0003589,2]
[358950017,1745583072993,-1490.15,0.0003589,2]
[358950018,1745583073003,-500.0,0.0003589,2]
[358950019,1745583073014,-500.0,0.0003589,2]
[358950020,1745583073024,-500.0,0.0003589,2]
[358950021,1745583073035,-1281.04,0.0003589,2]
[358950022,1745583073047,-500.0,0.0003589,2]
[358950023,1745583073057,-664.11,0.0003589,2]
[358950024,1745583073067,-500.0,0.0003589,2]
[358950025,1745583073078,-557.66,0.0003589,2]
[358950026,1745583073090,-500.0,0.0003589,2]
[358950027,1745583073101,-544.36,0.0003589,2]
[358950028,1745583073110,-1161.09491405,0.0003589,30]
[358950029,1745583073121,-1691.971333,0.0003589,7]
[358950030,1745583073135,-1691.971333,0.0003589,7]
[358950031,1745583073145,-803.76,0.0003589,2]
[358950032,1745583073154,-1691.971333,0.0003589,7]
[358950033,1745583073164,-1691.971333,0.0003589,7]
[358950034,1745583073175,-500.0,0.0003589,2]
[358950035,1745583073184,-500.0,0.0003589,2]
[358950036,1745583073195,-661.96,0.0003589,2]
[358950037,1745583073204,-672.15,0.0003589,2]
[358950038,1745583073214,-533.3,0.0003589,2]
[358950039,1745583073224,-731.33,0.0003589,2]
[358950040,1745583073234,-500.0,0.0003589,2]
[358950041,1745583073243,-593.04,0.0003589,2]
[358950042,1745583073253,-500.0,0.0003589,2]
[358950043,1745583073263,-527.14986875,0.0003589,2]
[358950044,1745583073273,-500.0,0.0003589,2]
[358950045,1745583073282,-500.0,0.0003589,2]
[358950046,1745583073294,-500.0,0.0003589,2]
[358950047,1745583073303,-500.0,0.0003589,2]
[358950048,1745583073313,-500.0,0.0003589,2]
[358950049,1745583073322,-522.71781178,0.0003589,2]
[358950050,1745583073333,-500.0,0.0003589,2]
[358950051,1745583073343,-2909.22,0.0003589,2]
[358950052,1745583073353,-500.0,0.0003589,2]
[358950053,1745583073365,-564.21574373,0.0003589,2]
[358950054,1745583073375,-500.0,0.0003589,2]
[358950055,1745583073387,-500.0,0.0003589,2]
[358950056,1745583073402,-1883.8,0.0003589,2]
[358950057,1745583073413,-500.0,0.0003589,2]
[358950058,1745583073425,-500.0,0.0003589,2]
[358950059,1745583073435,-500.0,0.0003589,2]
[358950060,1745583073446,-500.0,0.0003589,2]
[358950061,1745583073456,-715.33,0.0003589,2]
[358950062,1745583073468,-500.0,0.0003589,2]
[358950063,1745583073481,-500.0,0.0003589,2]
[358950064,1745583073491,-500.0,0.0003589,2]
[358950065,1745583073503,-500.0,0.0003589,2]
[358950066,1745583073513,-151.0,0.0003589,7]
[358950067,1745583073522,-151.0,0.0003589,7]
[358950068,1745583073532,-151.0,0.0003589,7]
[358950069,1745583073543,-504.93390751,0.0003589,2]
[358950070,1745583073553,-500.0,0.0003589,2]
[358950071,1745583073563,-331.26563819,0.0003589,2]
[358950072,1745583073574,-1130.46,0.0003589,2]
[358950073,1745583073583,-500.0,0.0003589,2]
[358950074,1745583073594,-500.0,0.0003589,2]
[358950075,1745583073603,-500.0,0.0003589,2]
[358950076,1745583073613,-686.42,0.0003589,2]
[358950077,1745583073623,-500.0,0.0003589,2]
[358950078,1745583073633,-500.0,0.0003589,2]
[358950079,1745583073643,-542.38629098,0.0003589,2]
[358950080,1745583073652,-500.0,0.0003589,2]
[358950081,1745583073662,-500.0,0.0003589,2]
[358950082,1745583073672,-500.0,0.0003589,2]
[358950083,1745583073684,-500.0,0.0003589,2]
[358950084,1745583073694,-1580.56,0.0003589,2]
[358950085,1745583073704,-500.0,0.0003589,2]
[358950086,1745583073713,-500.0,0.0003589,2]
[358950087,1745583073723,-517.30669021,0.0003589,2]
[358950088,1745583073732,-500.0,0.0003589,2]
[358950089,1745583073742,-1178.77,0.0003589,2]
[358950090,1745583073752,-500.0,0.0003589,2]
[358950091,1745583073763,-513.8382107,0.0003589,2]
[358950092,1745583073772,-500.0,0.0003589,2]
[358950093,1745583073782,-987.3,0.0003589,2]
[358950094,1745583073792,-500.0,0.0003589,2]
[358950095,1745583073801,-413.34089442,0.0003589,2]
[358950096,1745583073812,-500.0,0.0003589,2]
[358950097,1745583073821,-560.86,0.0003589,2]
[358950098,1745583073831,-500.0,0.0003589,2]
[358950099,1745583073842,-485.20929104,0.0003589,2]
[358950100,1745583073851,-500.0,0.0003589,2]
[358950101,1745583073861,-500.0,0.0003589,2]
[358950102,1745583073871,-528.52887777,0.0003589,2]
[358950103,1745583073881,-500.0,0.0003589,2]
[358950104,1745583073890,-500.0,0.0003589,2]
[358950105,1745583073900,-500.0,0.0003589,2]
[358950106,1745583073911,-500.0,0.0003589,2]
[358950107,1745583073921,-500.0,0.0003589,2]
[358950108,1745583073932,-956.78,0.0003589,2]
[358950109,1745583073943,-311.01182144,0.0003589,2]
[358950110,1745583073955,-500.0,0.0003589,2]
[358950111,1745583073965,-500.0,0.0003589,2]
[358950112,1745583073975,-636.67,0.0003589,2]
[358950113,1745583073985,-500.0,0.0003589,2]
[358950114,1745583073995,-500.0,0.0003589,2]
[358950115,1745583074004,-966.15,0.0003589,2]
[358950116,1745583074014,-500.0,0.0003589,2]
[358950117,1745583074024,-500.0,0.0003589,2]
[358950118,1745583074034,-500.0,0.0003589,2]
[358950119,1745583074043,-500.0,0.0003589,2]
[358950120,1745583074053,-1012.74,0.0003589,2]
[358950121,1745583074064,-818.36,0.0003589,2]
[358950122,1745583074074,-500.0,0.0003589,2]
[358950123,1745583074084,-500.0,0.0003589,2]
[358950124,1745583074093,-500.0,0.0003589,2]
[358950125,1745583074103,-1055.72,0.0003589,2]
[358950126,1745583074114,-971.58,0.0003589,2]
[358950127,1745583074123,-1159.23,0.0003589,2]
[358950128,1745583074133,-1090.24,0.0003589,2]
[358950129,1745583074143,-500.0,0.0003589,2]
[358950130,1745583074153,-1035.57,0.0003589,2]
[358950131,1745583074162,-500.0,0.0003589,2]
[358950132,1745583074172,-500.0,0.0003589,2]
[358950133,1745583074182,-500.0,0.0003589,2]
[358950134,1745583074192,-597.18,0.0003589,2]